bitfinex/quotes_BTCUSD_20230111
["timestamp","ask_amount","ask_price","bid_price","bid_amount"]
[1673443827859,0.08183022,17427.0,17426.0,3.17402172]
[1673443828137,0.08183022,17427.0,17426.0,3.34602213]
[1673443828405,0.08183022,17427.0,17426.0,3.17402172]
[1673443830717,0.08183022,17427.0,17426.0,3.00183889]
[1673443836225,0.08183022,17427.0,17426.0,3.17402172]
[1673443838287,0.08183022,17427.0,17426.0,3.53318172]
[1673443839769,0.08183022,17427.0,17426.0,3.17402172]
[1673443841123,0.08183022,17427.0,17426.0,3.53318172]
[1673443841352,0.08183022,17427.0,17426.0,3.70518286]
[1673443841863,0.08183022,17427.0,17426.0,3.96322437]
[1673443842122,0.08183022,17427.0,17426.0,3.96322424]
[1673443842634,0.08183022,17427.0,17426.0,3.70518286]
[1673443843684,0.08183022,17427.0,17426.0,3.70506566]
[1673443843928,0.08183022,17427.0,17426.0,3.36099756]
[1673443845268,0.08183022,17427.0,17426.0,3.39722479]
[1673443845545,0.08183022,17427.0,17426.0,3.56192479]
[1673443845785,0.08183022,17427.0,17426.0,2.98005692]
[1673443846559,0.08183022,17427.0,17426.0,3.49785248]
[1673443847340,0.08171195,17427.0,17426.0,3.49785248]
[1673443849379,0.08171195,17427.0,17426.0,3.03160122]
[1673443850406,0.08171195,17427.0,17426.0,3.46156293]
[1673443851496,0.08171195,17427.0,17426.0,3.03160122]
[1673443852180,0.08171195,17427.0,17426.0,3.49785248]
[1673443853948,0.08171195,17427.0,17426.0,3.03160122]
[1673443854482,0.08171195,17427.0,17426.0,1.88389122]
[1673443854739,0.08171195,17427.0,17426.0,3.03160122]
[1673443856377,0.08171195,17427.0,17426.0,3.46140529]
[1673443857471,0.08171195,17427.0,17426.0,3.03160122]
[1673443858531,0.08171195,17427.0,17426.0,3.46137836]
[1673443859572,0.08171195,17427.0,17426.0,3.64050839]
[1673443859848,0.08171195,17427.0,17426.0,3.64050794]
[1673443860108,0.08171195,17427.0,17426.0,3.64050824]
[1673443860602,0.08171195,17427.0,17426.0,3.29667836]
[1673443862879,0.08171195,17427.0,17426.0,3.64051754]
[1673443863137,0.08171195,17427.0,17426.0,3.47581754]
[1673443863370,0.08171195,17427.0,17426.0,3.73369954]
[1673443863602,0.08171195,17427.0,17426.0,3.47581754]
[1673443871723,0.08160523,17427.0,17426.0,3.47581754]
[1673443873736,0.08160523,17427.0,17426.0,3.13197836]
[1673443874239,0.08160523,17427.0,17426.0,3.13149668]
[1673443880591,0.08160523,17427.0,17426.0,3.47557368]
[1673443880841,0.08160523,17427.0,17426.0,3.13149668]
[1673443881601,0.08160523,17427.0,17426.0,3.47557433]
[1673443881860,0.08160523,17427.0,17426.0,3.47557536]
[1673443882132,0.08160523,17427.0,17426.0,3.47557553]
[1673443882356,0.08160523,17427.0,17426.0,3.13149668]
[1673443883116,0.08160523,17427.0,17426.0,3.29619668]
[1673443886158,0.08160523,17427.0,17426.0,3.64029348]
[1673443886657,0.08160523,17427.0,17426.0,3.28113348]
[1673443886913,0.08160523,17427.0,17426.0,3.64029348]
[1673443887928,0.08160523,17427.0,17426.0,3.89835666]
[1673443888496,0.08160523,17427.0,17426.0,3.64029348]
[1673443890711,0.08160523,17427.0,17426.0,3.6344788]
[1673443893070,0.08160523,17427.0,17426.0,3.4697788]
[1673443894686,0.89684015,17427.0,17426.0,1.54726753]
[1673443894928,1.28977887,17427.0,17426.0,0.30370364]
[1673443895184,1.46184256,17427.0,17426.0,0.30370364]
[1673443895467,1.46184256,17427.0,17426.0,0.47575704]
[1673443895468,1.28977887,17427.0,17426.0,0.47575704]
[1673443895964,1.28977887,17427.0,17426.0,0.30370364]
[1673443896271,1.28977887,17427.0,17426.0,0.47575704]
[1673443896520,1.28977887,17427.0,17426.0,0.30370364]
[1673443901654,1.18977887,17427.0,17426.0,0.30370364]
[1673443902727,1.25791073,17427.0,17426.0,0.30370364]
[1673443905378,1.25791073,17427.0,17426.0,0.28370364]
[1673443907724,1.25791073,17427.0,17426.0,0.58370364]
[1673443908034,1.25791073,17427.0,17426.0,0.28370364]
[1673443908289,1.25791073,17427.0,17426.0,0.58370364]
[1673443909315,1.25791073,17427.0,17426.0,0.28370364]
[1673443909563,1.25791073,17427.0,17426.0,0.58370364]
[1673443910551,0.69874847,17427.0,17426.0,0.58370364]
[1673443911072,0.23283186,17427.0,17426.0,0.58370364]
[1673443913126,0.06813186,17427.0,17426.0,0.58370364]
[1673443913383,0.06813186,17427.0,17426.0,1.15755864]
[1673443920808,0.06813186,17427.0,17426.0,1.15744045]
[1673443921579,0.06813186,17427.0,17426.0,1.32949385]
[1673443922098,0.06813186,17427.0,17426.0,1.15744045]
[1673443922866,0.06813186,17427.0,17426.0,1.32949385]
[1673443923111,0.06813186,17427.0,17426.0,1.15744045]
[1673443924100,1.22339086,17427.0,17426.0,0.85744045]
[1673443925419,1.22339086,17427.0,17426.0,0.28358545]
[1673443925680,1.39545455,17427.0,17426.0,0.28358545]
[1673443926690,1.43295755,17427.0,17426.0,0.28358545]
[1673443927981,1.39545455,17427.0,17426.0,0.28358545]
[1673443934162,1.65355008,17427.0,17426.0,0.28358545]
[1673443936944,1.65355008,17427.0,17426.0,0.27779581]
[1673443937950,1.69105308,17427.0,17426.0,0.27779581]
[1673443939636,1.65355008,17427.0,17426.0,0.27779581]
[1673443939898,1.69105308,17427.0,17426.0,0.27779581]
[1673443942704,1.86311677,17427.0,17426.0,0.27779581]
[1673443942955,2.03516255,17427.0,17426.0,0.27779581]
[1673443943215,1.85533517,17427.0,17426.0,0.27779581]
[1673443944465,2.19946255,17427.0,17426.0,0.27779581]
[1673443944721,2.02741677,17427.0,17426.0,0.27779581]
[1673443955203,1.76932124,17427.0,17426.0,0.27779581]
[1673443955461,2.02731224,17427.0,17426.0,0.27779581]
[1673443958337,2.95397852,17427.0,17426.0,0.27779581]
[1673443959346,2.95394303,17427.0,17426.0,0.27779581]
[1673443960114,2.95394303,17427.0,17426.0,0.25]
[1673443960364,2.96494303,17427.0,17426.0,0.285]
[1673443961162,2.96494303,17427.0,17426.0,1e-08]
[1673443963537,3.19463765,17427.0,17426.0,1e-08]
[1673443964330,4.50679564,17427.0,17426.0,1e-08]
[1673443964523,4.07662474,17427.0,17426.0,1e-08]
[1673443964849,4.07663282,17427.0,17426.0,1e-08]
[1673443965102,4.50664386,17427.0,17426.0,1e-08]
[1673443965379,4.07663282,17427.0,17426.0,1e-08]
[1673443965690,4.50666657,17427.0,17426.0,1e-08]
[1673443966478,4.07663399,17427.0,17426.0,1e-08]
[1673443967301,4.50661836,17427.0,17426.0,1e-08]
[1673443967574,3.35855112,17427.0,17426.0,1e-08]
[1673443968955,3.93237312,17427.0,17426.0,1e-08]
[1673443972032,4.21319981,17427.0,17426.0,1e-08]
[1673443972278,4.35747555,17427.0,17426.0,1e-08]
[1673443972529,3.98892652,17427.0,17426.0,1e-08]
[1673443972780,5.86335317,17427.0,17426.0,1e-08]
[1673443973548,5.34692561,17427.0,17426.0,1e-08]
[1673443974076,5.33592561,17427.0,17425.0,0.76984157]
[1673443974325,2.78231102,17426.0,17425.0,0.76984157]
[1673443974658,2.81981402,17426.0,17425.0,0.76984157]
[1673443974841,3.39366902,17426.0,17425.0,0.76984157]
[1673443977188,3.96986736,17426.0,17425.0,0.76984157]
[1673443977464,3.52866902,17426.0,17425.0,0.76984157]
[1673443977722,3.75858698,17426.0,17425.0,0.76984157]
[1673443977969,4.47682219,17426.0,17425.0,0.76984157]
[1673443978722,4.31212219,17426.0,17425.0,0.76984157]
[1673443979260,3.5938186,17426.0,17425.0,0.76984157]
[1673443979498,3.16396568,17426.0,17425.0,0.76984157]
[1673443979793,3.59381764,17426.0,17425.0,0.76984157]
[1673443980002,3.59381661,17426.0,17425.0,0.76984157]
[1673443980257,3.59381834,17426.0,17425.0,0.76984157]
[1673443980487,4.12537959,17426.0,17425.0,0.76984157]
[1673443980737,4.07201612,17426.0,17425.0,0.76984157]
[1673443980991,3.64216346,17426.0,17425.0,0.76984157]
[1673443981240,4.31211775,17426.0,17425.0,0.76984157]
[1673443981750,3.59383771,17426.0,17425.0,0.76984157]
[1673443982005,4.31212556,17426.0,17425.0,0.76984157]
[1673443982518,3.59383874,17426.0,17425.0,0.76984157]
[1673443984066,3.59383874,17426.0,17425.0,0.76976802]
[1673443985630,4.29367915,17426.0,17425.0,0.76976802]
[1673443986393,4.63753675,17426.0,17425.0,0.76976802]
[1673443987166,4.29367915,17426.0,17425.0,0.76976802]
[1673443987519,4.63755163,17426.0,17425.0,0.76976802]
[1673443987968,4.29367915,17426.0,17425.0,0.76976802]
[1673443988242,4.71375431,17426.0,17425.0,0.76976802]
[1673443989808,4.28622935,17426.0,17425.0,0.76976802]
[1673443990104,4.05625882,17426.0,17425.0,0.76976802]
[1673443990842,3.12984649,17426.0,17425.0,0.76976802]
[1673443991377,3.55971955,17426.0,17425.0,0.76976802]
[1673443991620,3.12984649,17426.0,17425.0,0.76976802]
[1673443991906,3.55971955,17426.0,17425.0,0.76976802]
[1673443992147,3.30180793,17426.0,17425.0,0.76976802]
[1673443992394,3.55974163,17426.0,17425.0,0.76976802]
[1673443992644,3.12986857,17426.0,17425.0,0.76976802]
[1673443993971,2.55601357,17426.0,17425.0,0.76976802]
[1673443996362,2.72795293,17426.0,17425.0,0.76976802]
[1673443996936,3.44074587,17426.0,17425.0,0.76976802]
[1673443997707,3.44074587,17426.0,17425.0,1e-08]
[1673443997945,3.44074587,17426.0,17424.0,0.00375466]
[1673443998207,0.59475485,17425.0,17424.0,0.00375466]
[1673443998463,0.63225785,17425.0,17424.0,0.00375466]
[1673443998737,1.09790521,17425.0,17424.0,0.00375466]
[1673443999542,1.23190521,17425.0,17424.0,0.00375466]
[1673444000070,1.19440221,17425.0,17424.0,0.00375466]
[1673444000328,1.23190521,17425.0,17424.0,0.00375466]
[1673444001578,1.82772569,17425.0,17424.0,0.00375466]
[1673444001866,2.20911316,17425.0,17424.0,0.00375466]
[1673444002104,2.03709122,17425.0,17424.0,0.00375466]
[1673444004854,1.87239122,17425.0,17424.0,0.00375466]
[1673444005110,1.87219709,17425.0,17424.0,0.00375466]
[1673444006454,1.9388599,17425.0,17424.0,0.00375466]
[1673444011946,2.11070005,17425.0,17424.0,0.00375466]
[1673444012502,2.36886722,17425.0,17424.0,0.00375466]
[1673444012759,1.93899416,17425.0,17424.0,0.00375466]
[1673444013269,2.36886722,17425.0,17424.0,0.00368806]
[1673444013570,1.93899234,17425.0,17424.0,0.00368806]
[1673444015022,2.11070005,17425.0,17424.0,0.00368806]
[1673444015565,1.9389924,17425.0,17424.0,0.00368806]
[1673444016026,2.36886546,17425.0,17424.0,0.00368806]
[1673444016574,2.11070005,17425.0,17424.0,0.00368806]
[1673444016824,1.93899675,17425.0,17424.0,0.00368806]
[1673444018669,2.11070005,17425.0,17424.0,0.00368806]
[1673444020166,1.93900885,17425.0,17424.0,0.00368806]
[1673444020680,2.76231843,17425.0,17424.0,0.00368806]
[1673444023177,2.11070005,17425.0,17424.0,0.00368806]
[1673444023398,2.36889229,17425.0,17424.0,0.00368806]
[1673444023646,2.36889245,17425.0,17424.0,0.00368806]
[1673444023922,1.93901939,17425.0,17424.0,0.00368806]
[1673444025202,1.47356616,17425.0,17424.0,0.00368806]
[1673444025458,1.90354078,17425.0,17424.0,0.00368806]
[1673444025732,1.94104378,17425.0,17424.0,0.00368806]
[1673444028087,2.37094314,17425.0,17424.0,0.00368806]
[1673444028345,2.42157515,17425.0,17424.0,0.00368806]
[1673444028574,3.56974007,17425.0,17424.0,0.00368806]
[1673444028846,3.57025541,17425.0,17424.0,0.00368806]
[1673444032163,2.42209049,17425.0,17424.0,0.00368806]
[1673444032440,3.57026049,17425.0,17424.0,0.00368806]
[1673444032735,3.57025989,17425.0,17424.0,0.00368806]
[1673444032990,3.57026181,17425.0,17424.0,0.00368806]
[1673444033529,2.42209049,17425.0,17424.0,0.00368806]
[1673444033838,3.57025833,17425.0,17424.0,0.00368806]
[1673444034115,3.57026057,17425.0,17424.0,0.00368806]
[1673444034625,2.42209049,17425.0,17424.0,0.00368806]
[1673444034889,3.57026031,17425.0,17424.0,0.00368806]
[1673444035425,2.42209049,17425.0,17424.0,0.00368806]
[1673444036511,2.76630045,17425.0,17424.0,0.00368806]
[1673444036765,2.42209049,17425.0,17424.0,0.00368806]
[1673444037823,2.76629913,17425.0,17424.0,0.00368806]
[1673444038869,1.94113609,17425.0,17424.0,0.00368806]
[1673444039167,1.94118389,17425.0,17424.0,0.00368806]
[1673444039429,1.47384968,17425.0,17424.0,0.00368806]
[1673444040489,1.9413273,17425.0,17424.0,0.00368806]
[1673444044368,2.3717157,17425.0,17424.0,0.00368806]
[1673444044626,2.11356395,17425.0,17424.0,0.00368806]
[1673444044880,1.94133576,17425.0,17424.0,0.00368806]
[1673444045146,2.76676201,17425.0,17424.0,0.00368806]
[1673444045615,2.37172848,17425.0,17424.0,0.00368806]
[1673444046132,2.11356395,17425.0,17424.0,0.00368806]
[1673444047243,2.07606095,17425.0,17424.0,0.00368806]
[1673444047525,2.11356395,17425.0,17424.0,0.00368806]
[1673444048040,2.37172834,17425.0,17424.0,0.00368806]
[1673444048852,2.37173233,17425.0,17424.0,0.00368806]
[1673444049140,2.11356395,17425.0,17424.0,0.00368806]
[1673444049655,2.33422925,17425.0,17424.0,0.00368806]
[1673444049944,1.94134385,17425.0,17424.0,0.00368806]
[1673444050736,2.11356395,17425.0,17424.0,0.00368806]
[1673444051770,2.7661668,17425.0,17424.0,0.00368806]
[1673444053378,2.11356395,17425.0,17424.0,0.00368806]
[1673444055322,1.94134773,17425.0,17424.0,0.00368806]
[1673444055570,2.37173613,17425.0,17424.0,0.00368806]
[1673444055825,2.11356395,17425.0,17424.0,0.00368806]
[1673444057098,2.76679076,17425.0,17424.0,0.00368806]
[1673444059841,2.11356395,17425.0,17424.0,0.00368806]
[1673444060341,2.37173638,17425.0,17424.0,0.00368806]
[1673444060615,2.11356395,17425.0,17424.0,0.00368806]
[1673444060864,2.76659739,17425.0,17424.0,0.00368806]
[1673444061619,2.42238875,17425.0,17424.0,0.00368806]
[1673444061881,2.76662958,17425.0,17424.0,0.00368806]
[1673444064164,2.76663436,17425.0,17424.0,0.00368806]
[1673444064419,2.42238875,17425.0,17424.0,0.00368806]
[1673444065648,2.76663742,17425.0,17424.0,0.00368806]
[1673444065922,2.42238875,17425.0,17424.0,0.00368806]
[1673444070138,2.76665665,17425.0,17424.0,0.00368806]
[1673444072245,2.42238875,17425.0,17424.0,0.00368806]
[1673444072497,3.57056112,17425.0,17424.0,0.00368806]
[1673444073863,3.14017272,17425.0,17424.0,0.00368806]
[1673444078723,3.57046255,17425.0,17424.0,0.00368806]
[1673444078986,3.14017272,17425.0,17424.0,0.00368806]
[1673444079225,3.57046297,17425.0,17424.0,0.00368806]
[1673444079474,3.14017272,17425.0,17424.0,0.00368806]
[1673444084514,3.5971648,17425.0,17424.0,0.00359658]
[1673444084763,4.24137741,17425.0,17424.0,0.00359658]
[1673444085028,3.72494985,17425.0,17424.0,0.00359658]
[1673444086271,4.24137741,17425.0,17424.0,0.00359658]
[1673444086531,3.99934269,17425.0,17424.0,0.00359658]
[1673444086854,4.3355528,17425.0,17424.0,0.00359658]
[1673444087024,0.27799522,17423.0,17422.0,0.00488951]
[1673444087281,1.17556758,17423.0,17422.0,0.00488951]
[1673444087548,2.16610402,17423.0,17422.0,0.00488951]
[1673444088837,3.21916175,17423.0,17422.0,0.00488951]
[1673444089325,3.22816175,17423.0,17422.0,0.00488951]
[1673444090057,3.21916175,17423.0,17422.0,0.00488951]
[1673444090311,2.88418267,17423.0,17422.0,0.00488951]
[1673444090586,2.87518267,17423.0,17422.0,0.00488951]
[1673444090849,3.35408689,17423.0,17422.0,0.00488951]
[1673444091155,2.80970824,17423.0,17422.0,0.00488951]
[1673444091378,3.50872944,17423.0,17422.0,0.00488951]
[1673444091879,3.16482522,17423.0,17422.0,0.00488951]
[1673444092366,3.08046399,17423.0,17422.0,0.00488951]
[1673444092617,3.74416706,17423.0,17422.0,0.00488951]
[1673444092874,4.31812006,17423.0,17422.0,0.00488951]
[1673444093614,3.61371002,17423.0,17422.0,0.00488951]
[1673444093870,4.13686839,17423.0,17422.0,0.00488951]
[1673444094121,3.9067358,17423.0,17422.0,0.00488951]
[1673444095358,3.25370236,17423.0,17422.0,0.00488951]
[1673444095605,3.08143505,17423.0,17422.0,0.00488951]
[1673444095844,2.61395743,17423.0,17422.0,0.00488951]
[1673444096087,2.96132829,17423.0,17422.0,0.00488951]
[1673444096353,2.61395743,17423.0,17422.0,0.00488951]
[1673444097367,2.78583604,17423.0,17422.0,0.00488951]
[1673444097604,1.86806263,17423.0,17422.0,0.00488951]
[1673444100133,2.04000443,17423.0,17422.0,0.00488951]
[1673444100386,1.86806765,17423.0,17422.0,0.00488951]
[1673444101116,2.04000443,17423.0,17422.0,0.00488951]
[1673444101877,2.48103272,17423.0,17422.0,0.00488951]
[1673444102626,2.04000443,17423.0,17422.0,0.00488951]
[1673444103135,1.87530443,17423.0,17422.0,0.00488951]
[1673444103384,1.70337976,17423.0,17422.0,0.00488951]
[1673444104168,1.87530443,17423.0,17422.0,0.00488951]
[1673444105428,1.70339036,17423.0,17422.0,0.00488951]
[1673444108955,2.29538753,17423.0,17422.0,0.00488951]
[1673444109372,1.87530443,17423.0,17422.0,0.00488951]
[1673444109955,2.04724332,17423.0,17422.0,0.00488951]
[1673444110214,1.40342102,17423.0,17422.0,0.00488951]
[1673444110473,1.42822102,17423.0,17422.0,0.00488951]
[1673444111250,0.87039359,17423.0,17422.0,0.00488951]
[1673444111805,1.42822102,17423.0,17422.0,0.00488951]
[1673444112002,1.42822102,17423.0,17422.0,0.00479655]
[1673444112260,1.77204143,17423.0,17422.0,0.00479655]
[1673444112519,1.77207669,17423.0,17422.0,0.00479655]
[1673444112760,1.60010443,17423.0,17422.0,0.00479655]
[1673444113269,1.77208587,17423.0,17422.0,0.00479655]
[1673444113862,2.02034438,17423.0,17422.0,0.00479655]
[1673444114093,2.83869932,17423.0,17422.0,0.00479655]
[1673444114827,2.19261169,17423.0,17422.0,0.00479655]
[1673444115392,3.41270878,17423.0,17422.0,0.00479655]
[1673444115893,2.76656469,17423.0,17422.0,0.00479655]
[1673444116148,3.41270803,17423.0,17422.0,0.00479655]
[1673444116654,3.48383234,17423.0,17422.0,0.00479655]
[1673444118564,3.14001193,17423.0,17422.0,0.00479655]
[1673444120658,4.28834657,17423.0,17422.0,0.00479655]
[1673444122566,4.28555135,17423.0,17422.0,0.00479655]
[1673444122820,3.85545661,17423.0,17422.0,0.00479655]
[1673444123589,4.37188417,17423.0,17422.0,0.00479655]
[1673444123861,3.85545661,17423.0,17422.0,0.00479655]
[1673444124685,3.49699824,17423.0,17422.0,0.00479655]
[1673444124955,4.02117643,17423.0,17422.0,0.00479655]
[1673444125785,4.07095124,17423.0,17422.0,0.00479655]
[1673444126033,0.00378978,17421.0,17420.0,0.00895295]
[1673444126535,4.30407642,17421.0,17420.0,0.00895295]
[1673444126539,2.08482778,17421.0,17420.0,0.00895295]
[1673444126794,4.38388677,17421.0,17420.0,0.00895295]
[1673444127060,4.81393866,17421.0,17420.0,0.00895295]
[1673444127319,4.78523866,17421.0,17420.0,0.00895295]
[1673444127575,3.63690402,17421.0,17420.0,0.00895295]
[1673444128377,4.2037849,17421.0,17420.0,0.00895295]
[1673444128645,5.42782315,17421.0,17420.0,0.00895295]
[1673444129287,4.27931804,17421.0,17420.0,0.00895295]
[1673444129709,5.42783027,17421.0,17420.0,0.00895295]
[1673444129950,5.42782817,17421.0,17420.0,0.00895295]
[1673444130162,4.27931804,17421.0,17420.0,0.00895295]
[1673444131492,3.63690402,17421.0,17420.0,0.00895295]
[1673444132392,4.29451384,17421.0,17420.0,0.00895295]
[1673444132768,3.99207897,17421.0,17420.0,0.00895295]
[1673444133260,4.63742024,17421.0,17420.0,0.00895295]
[1673444133554,4.63742662,17421.0,17420.0,0.00895295]
[1673444133767,3.99207897,17421.0,17420.0,0.00895295]
[1673444134019,3.8198461,17421.0,17420.0,0.00895295]
[1673444134546,4.63740403,17421.0,17420.0,0.00895295]
[1673444134767,3.81983285,17421.0,17420.0,0.00895295]
[1673444137918,3.9916808,17421.0,17420.0,0.00895295]
[1673444138158,3.81983285,17421.0,17420.0,0.00895295]
[1673444138681,3.64789657,17421.0,17420.0,0.00895295]
[1673444138936,3.81983285,17421.0,17420.0,0.00895295]
[1673444139228,3.99167993,17421.0,17420.0,0.00895295]
[1673444139467,3.81983285,17421.0,17420.0,0.00895295]
[1673444139733,3.64789267,17421.0,17420.0,0.00895295]
[1673444140763,3.81983285,17421.0,17420.0,0.00895295]
[1673444146533,3.97886898,17421.0,17420.0,0.00895295]
[1673444146776,4.35356739,17421.0,17420.0,0.0088804]
[1673444147292,4.86611128,17421.0,17420.0,0.0088804]
[1673444147547,3.63369939,17421.0,17420.0,0.0088804]
[1673444148064,4.35253656,17421.0,17420.0,0.0088804]
[1673444148312,4.76554789,17421.0,17420.0,0.0088804]
[1673444152943,5.04530467,17421.0,17420.0,0.0088804]
[1673444153188,4.35253656,17421.0,17420.0,0.0088804]
[1673444155505,5.04215069,17421.0,17419.0,0.00406044]
[1673444155762,2.42072999,17420.0,17419.0,0.00406044]
[1673444156022,4.07212456,17420.0,17419.0,0.00406044]
[1673444156263,4.64591437,17420.0,17419.0,0.00406044]
[1673444156808,4.65441437,17420.0,17419.0,0.00406044]
[1673444157555,5.23380543,17420.0,17419.0,0.00406044]
[1673444158293,5.36980543,17420.0,17419.0,0.00406044]
[1673444158540,5.39401437,17420.0,17419.0,0.00406044]
[1673444159042,4.87760024,17420.0,17419.0,0.00406044]
[1673444159362,5.39401437,17420.0,17419.0,0.00406044]
[1673444159579,4.87760024,17420.0,17419.0,0.00406044]
[1673444159867,5.39401437,17420.0,17419.0,0.00406044]
[1673444160081,5.62259036,17420.0,17419.0,0.00406044]
[1673444160326,5.56521468,17420.0,17419.0,0.00406044]
[1673444163331,5.33663869,17420.0,17419.0,0.00399384]
[1673444164095,5.33663869,17420.0,17419.0,0.00384367]
[1673444164621,6.15274143,17420.0,17419.0,0.00384367]
[1673444164945,7.72062243,17420.0,17419.0,0.00384367]
[1673444165133,7.72062243,17420.0,17418.0,0.01275577]
[1673444165134,0.3,17419.0,17418.0,0.01089007]
[1673444165388,6.49921162,17419.0,17418.0,0.01089007]
[1673444165651,7.29568025,17419.0,17418.0,0.01089007]
[1673444165896,7.29568025,17419.0,17418.0,9.007e-05]
[1673444166153,8.28488025,17419.0,17418.0,9.007e-05]
[1673444166427,8.36350457,17419.0,17418.0,9.007e-05]
[1673444166701,8.9421314,17419.0,17418.0,9.007e-05]
[1673444166952,8.36191463,17419.0,17418.0,9.007e-05]
[1673444167207,8.94169001,17419.0,17418.0,9.007e-05]
[1673444167513,8.9558623,17419.0,17417.0,0.01363879]
[1673444167764,4.11397726,17418.0,17417.0,0.01363879]
[1673444168025,6.05426388,17418.0,17417.0,0.01363879]
[1673444168305,6.35426388,17418.0,17417.0,0.01363879]
[1673444168854,6.64384542,17418.0,17417.0,0.01363879]
[1673444169111,8.05946451,17418.0,17417.0,0.01363879]
[1673444170141,8.34893138,17418.0,17417.0,0.01363879]
[1673444170926,8.05920844,17418.0,17417.0,0.01363879]
[1673444171952,4.75631722,17418.0,17417.0,0.01363879]
[1673444172235,4.3340286,17418.0,17417.0,0.01363879]
[1673444172452,4.24234849,17418.0,17417.0,0.01363879]
[1673444173223,4.8216408,17418.0,17417.0,0.01363879]
[1673444173729,5.25840368,17418.0,17417.0,0.01363879]
[1673444174483,4.55840367,17418.0,17417.0,0.01363879]
[1673444175004,3.91400384,17418.0,17417.0,0.01363879]
[1673444175490,0.9036,17417.0,17416.0,0.01907586]
[1673444175739,2.87428773,17417.0,17416.0,0.01907586]
[1673444175991,3.08334494,17417.0,17416.0,0.01907586]
[1673444176246,3.62932666,17417.0,17416.0,0.01907586]
[1673444176738,3.9368844,17417.0,17416.0,0.02007586]
[1673444176993,3.76532666,17417.0,17416.0,0.02007586]
[1673444177758,3.93688739,17417.0,17416.0,0.02007586]
[1673444178019,3.59378137,17417.0,17416.0,0.02007586]
[1673444178267,3.04779965,17417.0,17416.0,0.02007586]
[1673444178529,3.21934494,17417.0,17416.0,0.02007586]
[1673444178776,4.05174438,17417.0,17416.0,0.02007586]
[1673444179543,3.66678843,17417.0,17416.0,0.02007586]
[1673444182612,3.83831885,17417.0,17416.0,0.02007586]
[1673444186496,4.00995281,17417.0,17416.0,0.02007586]
[1673444186833,4.63530937,17417.0,17416.0,0.02007586]
[1673444187290,4.69835796,17417.0,17416.0,0.02007586]
[1673444187813,5.24214556,17417.0,17416.0,0.02007586]
[1673444188586,4.21701704,17417.0,17416.0,0.02007586]
[1673444189373,4.93948557,17417.0,17416.0,0.02007586]
[1673444189638,4.21701704,17417.0,17416.0,0.02007586]
[1673444190170,4.7892216,17417.0,17416.0,0.02007586]
[1673444192505,4.36025993,17417.0,17416.0,0.02007586]
[1673444193030,3.78805537,17417.0,17416.0,0.02007586]
[1673444193282,4.50181753,17417.0,17416.0,0.02007586]
[1673444193534,4.93157617,17417.0,17416.0,0.02007586]
[1673444193836,4.38152966,17417.0,17416.0,0.02007586]
[1673444194342,4.72532653,17417.0,17416.0,0.02007586]
[1673444194609,4.38152966,17417.0,17416.0,0.02007586]
[1673444195411,3.6677675,17417.0,17416.0,0.02007586]
[1673444195639,4.87903609,17417.0,17416.0,0.02007586]
[1673444195988,5.39383685,17417.0,17416.0,0.02007586]
[1673444196433,5.39383685,17417.0,17416.0,0.01997525]
[1673444196700,0.3,17416.0,17414.0,0.00484401]
[1673444196963,1.15282448,17415.0,17414.0,0.00484401]
[1673444197230,1.19032748,17415.0,17414.0,0.00484401]
[1673444197749,1.81439627,17415.0,17414.0,0.00484401]
[1673444198013,2.5164749,17415.0,17414.0,0.00484401]
[1673444198268,1.89240611,17415.0,17414.0,0.00484401]
[1673444198541,2.4791019,17415.0,17414.0,0.00484401]
[1673444198788,2.5166049,17415.0,17414.0,0.00484401]
[1673444199046,2.6151019,17415.0,17414.0,0.00584401]
[1673444199323,2.6526049,17415.0,17414.0,0.00584401]
[1673444199571,2.6151019,17415.0,17414.0,0.00584401]
[1673444199879,2.6526049,17415.0,17414.0,0.00584401]
[1673444200087,2.6151019,17415.0,17414.0,0.00584401]
[1673444200361,2.0280971,17415.0,17414.0,0.00584401]
[1673444200629,1.9905941,17415.0,17414.0,0.00584401]
[1673444200885,2.0280971,17415.0,17414.0,0.00584401]
[1673444201174,2.65232718,17415.0,17414.0,0.00584401]
[1673444201664,2.61482418,17415.0,17414.0,0.00584401]
[1673444201931,1.47769502,17415.0,17414.0,0.00584401]
[1673444202481,1.30572327,17415.0,17414.0,0.00584401]
[1673444202978,1.47769502,17415.0,17414.0,0.00584401]
[1673444203815,1.26827112,17415.0,17414.0,0.00584401]
[1673444204017,0.136,17415.0,17414.0,0.00584401]
[1673444204800,0.136,17415.0,17414.0,0.5766979]
[1673444205570,0.136,17415.0,17414.0,1.4803479]
[1673444205845,0.136,17415.0,17414.0,1.8395079]
[1673444206440,0.136,17415.0,17414.0,1.26865401]
[1673444206618,0.136,17415.0,17414.0,3.95339842]
[1673444206874,0.136,17415.0,17414.0,3.78169479]
[1673444207152,0.136,17415.0,17414.0,3.52341758]
[1673444207398,0.136,17415.0,17414.0,3.69555089]
[1673444207667,0.136,17415.0,17414.0,3.10711924]
[1673444207907,0.136,17415.0,17414.0,4.55114936]
[1673444208197,0.6280623,17418.0,17414.0,4.55218593]
[1673444208460,0.80016693,17418.0,17417.0,0.1647]
[1673444208720,0.6280623,17418.0,17417.0,0.1647]
[1673444208980,0.57933244,17418.0,17417.0,0.1647]
[1673444209236,0.76643707,17418.0,17417.0,0.1647]
[1673444209488,0.57933244,17418.0,17417.0,0.1647]
[1673444209737,0.67533244,17418.0,17417.0,0.1677]
[1673444211796,0.67533244,17418.0,17417.0,0.741851]
[1673444213372,0.096,17418.0,17417.0,0.741851]
[1673444219911,0.096,17418.0,17417.0,1.616002]
[1673444220421,0.09592824,17418.0,17417.0,1.616002]
[1673444221477,0.09582995,17418.0,17417.0,1.616002]
[1673444222040,0.09582995,17418.0,17417.0,1.041851]
[1673444222297,0.09582995,17418.0,17417.0,0.4677]
[1673444222863,0.09582995,17418.0,17417.0,2.43217296]
[1673444223126,0.09582995,17418.0,17417.0,3.09133296]
[1673444226072,0.09582995,17418.0,17417.0,2.79133296]
[1673444226279,0.09582995,17418.0,17417.0,3.09133296]
[1673444227075,0.09582995,17418.0,17417.0,2.79133296]
[1673444228069,0.09582995,17418.0,17417.0,3.09133296]
[1673444228855,0.09582995,17418.0,17417.0,4.65548729]
[1673444229397,0.07573501,17418.0,17417.0,5.28520308]
[1673444230209,0.04894066,17421.0,17417.0,5.45433963]
[1673444230465,0.04894066,17421.0,17420.0,0.4941]
[1673444230745,0.04894066,17421.0,17420.0,2.875416]
[1673444230972,3.25706952,17423.0,17420.0,2.875416]
[1673444231263,0.58756952,17423.0,17422.0,0.6294]
[1673444231518,0.58756952,17423.0,17422.0,0.903386]
[1673444232037,0.59456952,17423.0,17422.0,0.903386]
[1673444232276,0.07430004,17423.0,17422.0,0.903386]
[1673444232592,0.16430004,17423.0,17422.0,0.909386]
[1673444233905,0.16430004,17423.0,17422.0,1.483372]
[1673444234718,0.15672654,17423.0,17422.0,1.483372]
[1673444235272,0.15672654,17423.0,17422.0,0.909386]
[1673444235768,0.15672654,17423.0,17422.0,0.3354]
[1673444236578,0.15672654,17423.0,17422.0,0.006]